{"text_format":"3","workbook":"xlsx","n_sheets":3,"sheets":["Ülesanded","Kuuvaade","Nädalavaade"],"not_rendered":{"images":4,"defined_names":16},"read":"whole","date_system":"1900"}

{"sheet":"Ülesanded","index":0,"n_rows":15,"n_cols":3,"rows_kept":15}
[null,"KUUVAADE","NÄDALAVAADE"]
[null," ÜLESANDED"]
[null,"KIRJELDUS","TÄHTAEG"]
[null,"1. ülesanne",{"$f":"TODAY()","v":"2017-11-14"}]
[null,"2. ülesanne",{"$f":"TODAY()+15","v":"2017-11-29"}]
[null,"3. ülesanne",{"$f":"TODAY()+30","v":"2017-12-14"}]
[null,"4. ülesanne",{"$f":"TODAY()+45","v":"2017-12-29"}]
[null,"5. ülesanne",{"$f":"TODAY()+60","v":"2018-01-13"}]
[null,"6. ülesanne",{"$f":"TODAY()+75","v":"2018-01-28"}]
[null,"7. ülesanne",{"$f":"TODAY()+90","v":"2018-02-12"}]
[null,"8. ülesanne",{"$f":"TODAY()+105","v":"2018-02-27"}]
[null,"9. ülesanne",{"$f":"TODAY()+115","v":"2018-03-09"}]
[null,"10. ülesanne",{"$f":"TODAY()+130","v":"2018-03-24"}]
[null,"11. ülesanne",{"$f":"TODAY()+145","v":"2018-04-08"}]
[null,"12. ülesanne",{"$f":"TODAY()+160","v":"2018-04-23"}]

{"sheet":"Kuuvaade","index":1,"n_rows":17,"n_cols":8,"rows_kept":17,"merged":[[3,1,3,7]]}
[null,"ÜLESANDED","NÄDALAVAADE"]
[null,"Valige kuu:","Sisestage aasta:"]
[null,"September",{"$f":"YEAR(TODAY())","v":2017}]
[null," KUUVAADE"]
[null,"ESMASPÄEV","TEISIPÄEV","KOLMAPÄEV","NELJAPÄEV","REEDE","LAUPÄEV","PÜHAPÄEV"]
[null,{"$f":"IF(WEEKDAY(DATEVALUE(\" 1\"&KuuKuu&KuuAasta)-1)=COLUMN(A$2),1,IF(LEN(A6)>0,A6+1,\"\"))","v":""},"","","",1,2,3]
[null,{"$f":"IF(LEN(B6)=0,\"\",IF(COUNTIF(Ülesanded[TÄHTAEG],DATE(KuuAasta,KuuKuuNum,B6))>0,\"Ülesande tähtaeg!\",\"\"))","v":""},{"$f":"IF(LEN(C6)=0,\"\",IF(COUNTIF(Ülesanded[TÄHTAEG],DATE(KuuAasta,KuuKuuNum,C6))>0,\"Ülesande tähtaeg!\",\"\"))","v":""},{"$f":"IF(LEN(D6)=0,\"\",IF(COUNTIF(Ülesanded[TÄHTAEG],DATE(KuuAasta,KuuKuuNum,D6))>0,\"Ülesande tähtaeg!\",\"\"))","v":""},{"$f":"IF(LEN(E6)=0,\"\",IF(COUNTIF(Ülesanded[TÄHTAEG],DATE(KuuAasta,KuuKuuNum,E6))>0,\"Ülesande tähtaeg!\",\"\"))","v":""},{"$f":"IF(LEN(F6)=0,\"\",IF(COUNTIF(Ülesanded[TÄHTAEG],DATE(KuuAasta,KuuKuuNum,F6))>0,\"Ülesande tähtaeg!\",\"\"))","v":""},{"$f":"IF(LEN(G6)=0,\"\",IF(COUNTIF(Ülesanded[TÄHTAEG],DATE(KuuAasta,KuuKuuNum,G6))>0,\"Ülesande tähtaeg!\",\"\"))","v":""},{"$f":"IF(LEN(H6)=0,\"\",IF(COUNTIF(Ülesanded[TÄHTAEG],DATE(KuuAasta,KuuKuuNum,H6))>0,\"Ülesande tähtaeg!\",\"\"))","v":""}]
[null,{"$f":"IF(LEN(H6)>0,IF(H6=DAY(DATE(KuuAasta,KuuKuuNum+1,0)),\"\",H6+1),\"\")","v":4},{"$f":"IF(LEN(B8)>0,IF(B8=DAY(DATE(KuuAasta,KuuKuuNum+1,0)),\"\",B8+1),\"\")","v":5},6,7,8,9,10]
[null,{"$f":"IF(LEN(B8)=0,\"\",IF(COUNTIF(Ülesanded[TÄHTAEG],DATE(KuuAasta,KuuKuuNum,B8))>0,\"Ülesande tähtaeg!\",\"\"))","v":""},{"$f":"IF(LEN(C8)=0,\"\",IF(COUNTIF(Ülesanded[TÄHTAEG],DATE(KuuAasta,KuuKuuNum,C8))>0,\"Ülesande tähtaeg!\",\"\"))","v":""},{"$f":"IF(LEN(D8)=0,\"\",IF(COUNTIF(Ülesanded[TÄHTAEG],DATE(KuuAasta,KuuKuuNum,D8))>0,\"Ülesande tähtaeg!\",\"\"))","v":""},{"$f":"IF(LEN(E8)=0,\"\",IF(COUNTIF(Ülesanded[TÄHTAEG],DATE(KuuAasta,KuuKuuNum,E8))>0,\"Ülesande tähtaeg!\",\"\"))","v":""},{"$f":"IF(LEN(F8)=0,\"\",IF(COUNTIF(Ülesanded[TÄHTAEG],DATE(KuuAasta,KuuKuuNum,F8))>0,\"Ülesande tähtaeg!\",\"\"))","v":""},{"$f":"IF(LEN(G8)=0,\"\",IF(COUNTIF(Ülesanded[TÄHTAEG],DATE(KuuAasta,KuuKuuNum,G8))>0,\"Ülesande tähtaeg!\",\"\"))","v":""},{"$f":"IF(LEN(H8)=0,\"\",IF(COUNTIF(Ülesanded[TÄHTAEG],DATE(KuuAasta,KuuKuuNum,H8))>0,\"Ülesande tähtaeg!\",\"\"))","v":""}]
[null,{"$f":"IF(LEN(H8)>0,IF(H8=DAY(DATE(KuuAasta,KuuKuuNum+1,0)),\"\",H8+1),\"\")","v":11},{"$f":"IF(LEN(B10)>0,IF(B10=DAY(DATE(KuuAasta,KuuKuuNum+1,0)),\"\",B10+1),\"\")","v":12},13,14,15,16,17]
[null,{"$f":"IF(LEN(B10)=0,\"\",IF(COUNTIF(Ülesanded[TÄHTAEG],DATE(KuuAasta,KuuKuuNum,B10))>0,\"Ülesande tähtaeg!\",\"\"))","v":""},{"$f":"IF(LEN(C10)=0,\"\",IF(COUNTIF(Ülesanded[TÄHTAEG],DATE(KuuAasta,KuuKuuNum,C10))>0,\"Ülesande tähtaeg!\",\"\"))","v":""},{"$f":"IF(LEN(D10)=0,\"\",IF(COUNTIF(Ülesanded[TÄHTAEG],DATE(KuuAasta,KuuKuuNum,D10))>0,\"Ülesande tähtaeg!\",\"\"))","v":""},{"$f":"IF(LEN(E10)=0,\"\",IF(COUNTIF(Ülesanded[TÄHTAEG],DATE(KuuAasta,KuuKuuNum,E10))>0,\"Ülesande tähtaeg!\",\"\"))","v":""},{"$f":"IF(LEN(F10)=0,\"\",IF(COUNTIF(Ülesanded[TÄHTAEG],DATE(KuuAasta,KuuKuuNum,F10))>0,\"Ülesande tähtaeg!\",\"\"))","v":""},{"$f":"IF(LEN(G10)=0,\"\",IF(COUNTIF(Ülesanded[TÄHTAEG],DATE(KuuAasta,KuuKuuNum,G10))>0,\"Ülesande tähtaeg!\",\"\"))","v":""},{"$f":"IF(LEN(H10)=0,\"\",IF(COUNTIF(Ülesanded[TÄHTAEG],DATE(KuuAasta,KuuKuuNum,H10))>0,\"Ülesande tähtaeg!\",\"\"))","v":""}]
[null,{"$f":"IF(LEN(H10)>0,IF(H10=DAY(DATE(KuuAasta,KuuKuuNum+1,0)),\"\",H10+1),\"\")","v":18},{"$f":"IF(LEN(B12)>0,IF(B12=DAY(DATE(KuuAasta,KuuKuuNum+1,0)),\"\",B12+1),\"\")","v":19},20,21,22,23,24]
[null,{"$f":"IF(LEN(B12)=0,\"\",IF(COUNTIF(Ülesanded[TÄHTAEG],DATE(KuuAasta,KuuKuuNum,B12))>0,\"Ülesande tähtaeg!\",\"\"))","v":""},{"$f":"IF(LEN(C12)=0,\"\",IF(COUNTIF(Ülesanded[TÄHTAEG],DATE(KuuAasta,KuuKuuNum,C12))>0,\"Ülesande tähtaeg!\",\"\"))","v":""},{"$f":"IF(LEN(D12)=0,\"\",IF(COUNTIF(Ülesanded[TÄHTAEG],DATE(KuuAasta,KuuKuuNum,D12))>0,\"Ülesande tähtaeg!\",\"\"))","v":""},{"$f":"IF(LEN(E12)=0,\"\",IF(COUNTIF(Ülesanded[TÄHTAEG],DATE(KuuAasta,KuuKuuNum,E12))>0,\"Ülesande tähtaeg!\",\"\"))","v":""},{"$f":"IF(LEN(F12)=0,\"\",IF(COUNTIF(Ülesanded[TÄHTAEG],DATE(KuuAasta,KuuKuuNum,F12))>0,\"Ülesande tähtaeg!\",\"\"))","v":""},{"$f":"IF(LEN(G12)=0,\"\",IF(COUNTIF(Ülesanded[TÄHTAEG],DATE(KuuAasta,KuuKuuNum,G12))>0,\"Ülesande tähtaeg!\",\"\"))","v":""},{"$f":"IF(LEN(H12)=0,\"\",IF(COUNTIF(Ülesanded[TÄHTAEG],DATE(KuuAasta,KuuKuuNum,H12))>0,\"Ülesande tähtaeg!\",\"\"))","v":""}]
[null,{"$f":"IF(LEN(H12)>0,IF(H12=DAY(DATE(KuuAasta,KuuKuuNum+1,0)),\"\",H12+1),\"\")","v":25},{"$f":"IF(LEN(B14)>0,IF(B14=DAY(DATE(KuuAasta,KuuKuuNum+1,0)),\"\",B14+1),\"\")","v":26},27,28,29,30,""]
[null,{"$f":"IF(LEN(B14)=0,\"\",IF(COUNTIF(Ülesanded[TÄHTAEG],DATE(KuuAasta,KuuKuuNum,B14))>0,\"Ülesande tähtaeg!\",\"\"))","v":""},{"$f":"IF(LEN(C14)=0,\"\",IF(COUNTIF(Ülesanded[TÄHTAEG],DATE(KuuAasta,KuuKuuNum,C14))>0,\"Ülesande tähtaeg!\",\"\"))","v":""},{"$f":"IF(LEN(D14)=0,\"\",IF(COUNTIF(Ülesanded[TÄHTAEG],DATE(KuuAasta,KuuKuuNum,D14))>0,\"Ülesande tähtaeg!\",\"\"))","v":""},{"$f":"IF(LEN(E14)=0,\"\",IF(COUNTIF(Ülesanded[TÄHTAEG],DATE(KuuAasta,KuuKuuNum,E14))>0,\"Ülesande tähtaeg!\",\"\"))","v":""},{"$f":"IF(LEN(F14)=0,\"\",IF(COUNTIF(Ülesanded[TÄHTAEG],DATE(KuuAasta,KuuKuuNum,F14))>0,\"Ülesande tähtaeg!\",\"\"))","v":""},{"$f":"IF(LEN(G14)=0,\"\",IF(COUNTIF(Ülesanded[TÄHTAEG],DATE(KuuAasta,KuuKuuNum,G14))>0,\"Ülesande tähtaeg!\",\"\"))","v":""},{"$f":"IF(LEN(H14)=0,\"\",IF(COUNTIF(Ülesanded[TÄHTAEG],DATE(KuuAasta,KuuKuuNum,H14))>0,\"Ülesande tähtaeg!\",\"\"))","v":""}]
[null,{"$f":"IF(LEN(H14)>0,IF(H14=DAY(DATE(KuuAasta,KuuKuuNum+1,0)),\"\",H14+1),\"\")","v":""},{"$f":"IF(LEN(B16)>0,IF(B16=DAY(DATE(KuuAasta,KuuKuuNum+1,0)),\"\",B16+1),\"\")","v":""},"","","","",""]
[null,{"$f":"IF(LEN(B16)=0,\"\",IF(COUNTIF(Ülesanded[TÄHTAEG],DATE(KuuAasta,KuuKuuNum,B16))>0,\"Ülesande tähtaeg!\",\"\"))","v":""},{"$f":"IF(LEN(C16)=0,\"\",IF(COUNTIF(Ülesanded[TÄHTAEG],DATE(KuuAasta,KuuKuuNum,C16))>0,\"Ülesande tähtaeg!\",\"\"))","v":""},{"$f":"IF(LEN(D16)=0,\"\",IF(COUNTIF(Ülesanded[TÄHTAEG],DATE(KuuAasta,KuuKuuNum,D16))>0,\"Ülesande tähtaeg!\",\"\"))","v":""},{"$f":"IF(LEN(E16)=0,\"\",IF(COUNTIF(Ülesanded[TÄHTAEG],DATE(KuuAasta,KuuKuuNum,E16))>0,\"Ülesande tähtaeg!\",\"\"))","v":""},{"$f":"IF(LEN(F16)=0,\"\",IF(COUNTIF(Ülesanded[TÄHTAEG],DATE(KuuAasta,KuuKuuNum,F16))>0,\"Ülesande tähtaeg!\",\"\"))","v":""},{"$f":"IF(LEN(G16)=0,\"\",IF(COUNTIF(Ülesanded[TÄHTAEG],DATE(KuuAasta,KuuKuuNum,G16))>0,\"Ülesande tähtaeg!\",\"\"))","v":""},{"$f":"IF(LEN(H16)=0,\"\",IF(COUNTIF(Ülesanded[TÄHTAEG],DATE(KuuAasta,KuuKuuNum,H16))>0,\"Ülesande tähtaeg!\",\"\"))","v":""}]

{"sheet":"Nädalavaade","index":2,"n_rows":17,"n_cols":8,"rows_kept":17,"merged":[[3,1,3,7]]}
[null,"ÜLESANDED","KUUVAADE"]
[null,"Valige kuu:","Sisestage aasta:","Valige nädala nr:"]
[null,"September",{"$f":"YEAR(TODAY())","v":2017},"1. nädal"]
[null," NÄDALAVAADE"]
[null,{"$f":"IF(WEEKDAY(DATEVALUE(\" 1\"&NädKuu&NädAasta)-1)=COLUMN(A$2),1,IF(LEN(A5)>0,A5+1,\"\"))","v":""},"","","",1,2,3]
[null,{"$f":"IF(LEN(H5)>0,IF(H5=Kuu_nädala_viimane_päev,\"\",H5+1),\"\")","v":4},{"$f":"IF(LEN(B6)>0,IF(B6=Kuu_nädala_viimane_päev,\"\",B6+1),\"\")","v":5},6,7,8,9,10]
[null,{"$f":"IF(LEN(H6)>0,IF(H6=Kuu_nädala_viimane_päev,\"\",H6+1),\"\")","v":11},12,13,14,15,16,17]
[null,{"$f":"IF(LEN(H7)>0,IF(H7=Kuu_nädala_viimane_päev,\"\",H7+1),\"\")","v":18},19,20,21,22,23,24]
[null,{"$f":"IF(LEN(H8)>0,IF(H8=Kuu_nädala_viimane_päev,\"\",H8+1),\"\")","v":25},26,27,28,29,30,""]
[null,{"$f":"IF(LEN(H9)>0,IF(H9=Kuu_nädala_viimane_päev,\"\",H9+1),\"\")","v":""},"","","","","",""]
[null,"ESMASPÄEV","TEISIPÄEV","KOLMAPÄEV","NELJAPÄEV","REEDE","LAUPÄEV","PÜHAPÄEV"]
[null,{"$f":"IF(B14=\"\",IF(AND(ISNUMBER(A12),A12<Kuu_nädala_viimane_päev),A12+1,\"\"),IF(B14<=7,\"\",INDEX(NädKuuVaade,NädNädal,COLUMN(A$2))-7))","v":""},"","","","","",""]
[null,{"$f":"IF(LEN(B12)=0,\"\",IF(COUNTIF(Ülesanded[TÄHTAEG],DATE(NädAasta,NädKuuNum,B12))>0,\"Ülesande tähtaeg!\",\"\"))","v":""},{"$f":"IF(LEN(C12)=0,\"\",IF(COUNTIF(Ülesanded[TÄHTAEG],DATE(NädAasta,NädKuuNum,C12))>0,\"Ülesande tähtaeg!\",\"\"))","v":""},{"$f":"IF(LEN(D12)=0,\"\",IF(COUNTIF(Ülesanded[TÄHTAEG],DATE(NädAasta,NädKuuNum,D12))>0,\"Ülesande tähtaeg!\",\"\"))","v":""},{"$f":"IF(LEN(E12)=0,\"\",IF(COUNTIF(Ülesanded[TÄHTAEG],DATE(NädAasta,NädKuuNum,E12))>0,\"Ülesande tähtaeg!\",\"\"))","v":""},{"$f":"IF(LEN(F12)=0,\"\",IF(COUNTIF(Ülesanded[TÄHTAEG],DATE(NädAasta,NädKuuNum,F12))>0,\"Ülesande tähtaeg!\",\"\"))","v":""},{"$f":"IF(LEN(G12)=0,\"\",IF(COUNTIF(Ülesanded[TÄHTAEG],DATE(NädAasta,NädKuuNum,G12))>0,\"Ülesande tähtaeg!\",\"\"))","v":""},{"$f":"IF(LEN(H12)=0,\"\",IF(COUNTIF(Ülesanded[TÄHTAEG],DATE(NädAasta,NädKuuNum,H12))>0,\"Ülesande tähtaeg!\",\"\"))","v":""}]
[null,{"$f":"INDEX(NädKuuVaade,NädNädal,COLUMN(A$2))","v":""},"","","",1,2,3]
[null,{"$f":"IF(LEN(B14)=0,\"\",IF(COUNTIF(Ülesanded[TÄHTAEG],DATE(NädAasta,NädKuuNum,B14))>0,\"Ülesande tähtaeg!\",\"\"))","v":""},{"$f":"IF(LEN(C14)=0,\"\",IF(COUNTIF(Ülesanded[TÄHTAEG],DATE(NädAasta,NädKuuNum,C14))>0,\"Ülesande tähtaeg!\",\"\"))","v":""},{"$f":"IF(LEN(D14)=0,\"\",IF(COUNTIF(Ülesanded[TÄHTAEG],DATE(NädAasta,NädKuuNum,D14))>0,\"Ülesande tähtaeg!\",\"\"))","v":""},{"$f":"IF(LEN(E14)=0,\"\",IF(COUNTIF(Ülesanded[TÄHTAEG],DATE(NädAasta,NädKuuNum,E14))>0,\"Ülesande tähtaeg!\",\"\"))","v":""},{"$f":"IF(LEN(F14)=0,\"\",IF(COUNTIF(Ülesanded[TÄHTAEG],DATE(NädAasta,NädKuuNum,F14))>0,\"Ülesande tähtaeg!\",\"\"))","v":""},{"$f":"IF(LEN(G14)=0,\"\",IF(COUNTIF(Ülesanded[TÄHTAEG],DATE(NädAasta,NädKuuNum,G14))>0,\"Ülesande tähtaeg!\",\"\"))","v":""},{"$f":"IF(LEN(H14)=0,\"\",IF(COUNTIF(Ülesanded[TÄHTAEG],DATE(NädAasta,NädKuuNum,H14))>0,\"Ülesande tähtaeg!\",\"\"))","v":""}]
[null,{"$f":"IFERROR(IF(B14=\"\",IF(AND(ISNUMBER(A16),A16<Kuu_nädala_viimane_päev),A16+1,$H$14+COLUMN(A$2)),IF(B14+7>Kuu_nädala_viimane_päev,\"\",INDEX(NädKuuVaade,NädNädal,COLUMN(A$2))+7)),\"\")","v":4},{"$f":"IFERROR(IF(C14=\"\",IF(AND(ISNUMBER(B16),B16<Kuu_nädala_viimane_päev),B16+1,$H$14+COLUMN(B$2)),IF(C14+7>Kuu_nädala_viimane_päev,\"\",INDEX(NädKuuVaade,NädNädal,COLUMN(B$2))+7)),\"\")","v":5},{"$f":"IFERROR(IF(D14=\"\",IF(AND(ISNUMBER(C16),C16<Kuu_nädala_viimane_päev),C16+1,$H$14+COLUMN(C$2)),IF(D14+7>Kuu_nädala_viimane_päev,\"\",INDEX(NädKuuVaade,NädNädal,COLUMN(C$2))+7)),\"\")","v":6},{"$f":"IFERROR(IF(E14=\"\",IF(AND(ISNUMBER(D16),D16<Kuu_nädala_viimane_päev),D16+1,$H$14+COLUMN(D$2)),IF(E14+7>Kuu_nädala_viimane_päev,\"\",INDEX(NädKuuVaade,NädNädal,COLUMN(D$2))+7)),\"\")","v":7},{"$f":"IFERROR(IF(F14=\"\",IF(AND(ISNUMBER(E16),E16<Kuu_nädala_viimane_päev),E16+1,$H$14+COLUMN(E$2)),IF(F14+7>Kuu_nädala_viimane_päev,\"\",INDEX(NädKuuVaade,NädNädal,COLUMN(E$2))+7)),\"\")","v":8},{"$f":"IFERROR(IF(G14=\"\",IF(AND(ISNUMBER(F16),F16<Kuu_nädala_viimane_päev),F16+1,$H$14+COLUMN(F$2)),IF(G14+7>Kuu_nädala_viimane_päev,\"\",INDEX(NädKuuVaade,NädNädal,COLUMN(F$2))+7)),\"\")","v":9},{"$f":"IFERROR(IF(H14=\"\",IF(AND(ISNUMBER(G16),G16<Kuu_nädala_viimane_päev),G16+1,$H$14+COLUMN(G$2)),IF(H14+7>Kuu_nädala_viimane_päev,\"\",INDEX(NädKuuVaade,NädNädal,COLUMN(G$2))+7)),\"\")","v":10}]
[null,{"$f":"IF(LEN(B16)=0,\"\",IF(COUNTIF(Ülesanded[TÄHTAEG],DATE(NädAasta,NädKuuNum,B16))>0,\"Ülesande tähtaeg!\",\"\"))","v":""},{"$f":"IF(LEN(C16)=0,\"\",IF(COUNTIF(Ülesanded[TÄHTAEG],DATE(NädAasta,NädKuuNum,C16))>0,\"Ülesande tähtaeg!\",\"\"))","v":""},{"$f":"IF(LEN(D16)=0,\"\",IF(COUNTIF(Ülesanded[TÄHTAEG],DATE(NädAasta,NädKuuNum,D16))>0,\"Ülesande tähtaeg!\",\"\"))","v":""},{"$f":"IF(LEN(E16)=0,\"\",IF(COUNTIF(Ülesanded[TÄHTAEG],DATE(NädAasta,NädKuuNum,E16))>0,\"Ülesande tähtaeg!\",\"\"))","v":""},{"$f":"IF(LEN(F16)=0,\"\",IF(COUNTIF(Ülesanded[TÄHTAEG],DATE(NädAasta,NädKuuNum,F16))>0,\"Ülesande tähtaeg!\",\"\"))","v":""},{"$f":"IF(LEN(G16)=0,\"\",IF(COUNTIF(Ülesanded[TÄHTAEG],DATE(NädAasta,NädKuuNum,G16))>0,\"Ülesande tähtaeg!\",\"\"))","v":""},{"$f":"IF(LEN(H16)=0,\"\",IF(COUNTIF(Ülesanded[TÄHTAEG],DATE(NädAasta,NädKuuNum,H16))>0,\"Ülesande tähtaeg!\",\"\"))","v":""}]